Cogmind - Beta 13 @@@ ROGUE MODE // 2024.03.22 @ 23:56:09 Player: Desymo99 Result: Smashed by cave-in Performance ------------- Evolutions (4) 2000 Regions Visited (8) 1600 Robots Destroyed (47) 235 Value Destroyed (1342) 1342 Prototype IDs (4) 80 Alien Tech Used (0) 0 Bonus (634) 634 TOTAL SCORE: 5891 Bonus ------- Follower Combat Kills 234 Entered DSFs 500 Friendly Fire -100 Cogmind --------- Core Integrity 0/850 Matter 75/300 Energy 100/100 System Corruption 25% Temperature Cool (0) Movement Core (50) Location -6/Extension Parts ------- > --- POWER (1) -------- (None) > --- PROPULSION (6) --- (None) > --- UTILITY (6) ------ (None) > --- WEAPON (2) ------- (None) > --- INVENTORY (5) ---- Heavy Ion Engine Wheel Improved Flight Unit Structural Scanner Datajack Peak State ------------ > --- POWER ------------ Cooled Ion Engine > --- PROPULSION ------- Carbon-fiber Leg Titanium Leg Titanium Leg Improved Titanium Leg Improved Titanium Leg Improved Titanium Leg > --- UTILITY ---------- Scrap Engine High-capacity Storage Unit Improved Energy Well Light Armor Plating Light Armor Plating > --- WEAPON ----------- Mini Grenade Launcher Heavy Hammer > --- INVENTORY -------- Heavy Ion Engine Cooled Ion Engine Light Treads Light Treads Wheel Improved Flight Unit Improved Flight Unit Small Storage Unit Structural Scanner Sensor Array Propulsion Shielding Light Armor Plating EM Pulse Gun Light Assault Rifle Datajack [Rating: 56] Favorites ----------- Power Heavy Ion Engine Engine Heavy Ion Engine Propulsion Aluminum Leg Treads Light Treads Leg Aluminum Leg Wheel Wheel Flight Unit Improved Flight Unit Utility High-capacity Storage Unit Device Scrap Engine Storage High-capacity Storage Unit Protection Hardened Light Armor Plating Weapon EM Pulse Gun Energy Gun EM Pulse Gun Ballistic Gun Assault Rifle Launcher Mini Grenade Launcher Impact Weapon Heavy Hammer Build | -11 -10 -9 -9 -9 -7 -7 -6 -6 ------- Run | Yrd Mat Mat Sto Rec Fac DSF Fac Ext Slots Evolved 8 | . . 2 . . 4 . 2 . Power . | . . . . . . . . . Propulsion 4 | . . 2 . . . . 2 . Utility 4 | . . . . . 4 . . . Weapon . | . . . . . . . . . Parts Attached 57 | 7 8 3 21 1 1 10 3 3 Power 4 | 1 . . 2 1 . . . . Engine 4 | 1 . . 2 1 . . . . Core . | . . . . . . . . . Reactor . | . . . . . . . . . Propulsion 26 | 2 2 2 10 . . 7 2 1 Treads 4 | . . 1 2 . . . . 1 Leg 15 | . . . 6 . . 7 2 . Wheel 5 | 2 2 1 . . . . . . Hover . | . . . . . . . . . Flight 2 | . . . 2 . . . . . Utility 10 | 1 2 . 2 . 1 2 1 1 Device 1 | . . . . . 1 . . . Storage 3 | 1 1 . . . . . . 1 Processor . | . . . . . . . . . Hackware . | . . . . . . . . . Protection 6 | . 1 . 2 . . 2 1 . Artifact . | . . . . . . . . . Weapon 17 | 3 4 1 7 . . 1 . 1 Energy Gun 10 | 2 2 . 5 . . 1 . . Energy Cannon . | . . . . . . . . . Ballistic Gun 4 | 1 2 1 . . . . . . Ballistic Cannon . | . . . . . . . . . Launcher 1 | . . . . . . . . 1 Special Weapon . | . . . . . . . . . Impact Weapon 2 | . . . 2 . . . . . Slashing Weapon . | . . . . . . . . . Piercing Weapon . | . . . . . . . . . Special Melee Weapon . | . . . . . . . . . Unidentified Prototypes 4 | . . . 3 . . . . 1 Parts Lost 31 | . 1 . 5 . . 1 1 23 Power 2 | . . . . . . . . 2 Propulsion 12 | . 1 . 3 . . . . 8 Utility 10 | . . . 1 . . . 1 8 Weapon 7 | . . . 1 . . 1 . 5 Highest Loss Streak 9 | . 1 . 4 . . 1 1 9 To Critical Strikes . | . . . . . . . . . Average Slot Usage (%) 79 | . 96 100 95 100 76 77 93 48 Engine 8 | . 14 11 11 11 7 7 6 3 Treads 2 | . . 11 5 . . . . 1 Leg 22 | . . . 26 44 30 30 40 18 Wheel 8 | . 28 33 12 . . . . . Device 1 | . . . . . 7 7 6 3 Storage 10 | . 14 11 11 11 7 7 6 9 Protection 7 | . 10 11 7 11 7 9 20 5 Energy Gun 7 | . 15 . 10 11 7 5 6 1 Ballistic Gun 2 | . 12 22 2 . . . . . Impact Weapon 5 | . . . 8 11 7 7 6 3 Naked Turns 249 | . . . . . . . . 249 Heaviest Build 65 | 14 54 51 59 59 60 65 65 64 Greatest Support 109 | 26 32 36 40 40 40 77 109 109 Greatest Overweight (x) 4 | . 2 1 4 1 1 1 . 1 Average Overweight (x) . | . . 1 1 1 1 . . . Largest Inventory Capacity 20 | 8 20 20 20 20 20 20 20 20 Average Capacity 18 | 7 19 20 20 20 20 20 20 17 Most Carried 20 | 7 17 16 20 20 18 20 16 16 Average Carried 15 | 4 13 14 18 19 18 19 14 13 Final Capacity 20 | 8 20 20 20 20 20 20 20 5 Final Carried 20 | 6 16 16 20 20 18 17 14 5 Scrap Engine Consumption 8 | . . . . . . 8 . . Class Distribution -------------------- 95% | Mutant 4% | Commander-Mutant Dominant Class ---------------- Mutant | -10/Materials Mutant | -9/Materials Mutant | -9/Storage Mutant | -9/Recycling Mutant | -7/Factory Mutant | -7/DSF Mutant | -6/Factory Mutant | -6/Extension Resources | -11 -10 -9 -9 -9 -7 -7 -6 -6 ----------- Run | Yrd Mat Mat Sto Rec Fac DSF Fac Ext Matter Collected 923 | 270 127 44 343 10 . 14 12 103 Remotely . | . . . . . . . . . Salvage Created 2005 | 88 252 58 1363 . . 62 12 170 Parts 79 | 1 13 3 59 . . 1 . 2 Haulers Intercepted 5 | . . . 5 . . . . . Recyclers Shooed 10 | . . . 9 . . . . 1 Parts Field Recycled . | . . . . . . . . . Retrieved Matter . | . . . . . . . . . Parts Self-Destructed . | . . . . . . . . . Prevented . | . . . . . . . . . Kills | -11 -10 -9 -9 -9 -7 -7 -6 -6 ------- Run | Yrd Mat Mat Sto Rec Fac DSF Fac Ext Combat Hostiles Destroyed 23 | . 4 1 11 . . 1 . 6 Guns 12 | . 2 1 9 . . . . . AOE 5 | . . . 1 . . . . 4 Classes Destroyed 12 | 1 3 1 5 . . 1 . 1 Worker 1 | . . . 1 . . . . . Builder 3 | . . . 1 . . . 1 1 Tunneler 1 | . 1 . . . . . . . Hauler 5 | . . . 5 . . . . . Recycler 7 | 1 . . 6 . . . . . Operator 1 | . . . 1 . . . . . Watcher 5 | . 2 . 2 . . . . 1 Grunt 15 | . 4 . 7 . . . . 4 Duelist 1 | . . . 1 . . . . . Sentry 6 | . . 1 4 . . . . 1 Specialist 1 | . . . . . . 1 . . Hunter 1 | . . . . . . . . 1 Best Kill Streak 4 | 1 3 1 3 . . 1 1 4 Combat Bots Only 4 | . 2 1 3 . . 1 . 4 Max Kills in Single Turn 1 | 1 1 1 1 . . 1 1 1 Gunslinging . | . . . . . . . . . Exploded 1 | . . . 1 . . . . 1 Melee . | . . . . . . . . . Uniques/NPCs Destroyed . | . . . . . . . . . Combat | -11 -10 -9 -9 -9 -7 -7 -6 -6 -------- Run | Yrd Mat Mat Sto Rec Fac DSF Fac Ext Hostile Shots Fired 333 | . 28 10 77 . . 25 8 185 Missed 88 | . 4 . 18 . . 7 3 56 Damage Taken 4669 | . 345 147 858 . . 410 92 2817 Core 1220 | . 50 24 198 . . 92 . 856 Absorbed by Shields . | . . . . . . . . . Redirected to Shielding 51 | . 9 21 21 . . . . . Core Remaining (%) 77 | 100 80 . . 44 . 86 . . Volleys Fired 133 | 3 29 5 77 . . . . 19 Largest 2 | 2 2 2 2 . . . . 1 Hottest 100 | 100 80 40 100 . . . . 30 Shots Fired 196 | 6 58 10 103 . . . . 19 Gun 177 | 6 58 10 103 . . . . . Cannon . | . . . . . . . . . Launcher 19 | . . . . . . . . 19 Special . | . . . . . . . . . Kinetic 71 | . 28 10 33 . . . . . Thermal 24 | 6 . . 18 . . . . . Explosive 19 | . . . . . . . . 19 Electromagnetic 82 | . 30 . 52 . . . . . Robot Hit Streak 12 | 5 6 11 12 . . . . 12 Robot Miss Streak 4 | . 2 . 4 . . . . 2 Penetration Max . | . . . . . . . . . Secondary Targets . | . . . . . . . . . Shots Hit Robots 180 | 5 37 9 94 . . 4 3 28 Core Hits 76 | 2 10 3 40 . . . . 21 Critical Kills 2 | . . . 2 . . . . . Critical Parts Destroyed 5 | . . . 2 . . 1 . 2 Critical Strikes 10 | . 1 . 6 . . 1 . 2 Burn 2 | . . . 2 . . . . . Corrupt 1 | . 1 . . . . . . . Smash 7 | . . . 4 . . 1 . 2 Melee Attacks 78 | . . . 24 . . 5 5 44 Impact 78 | . . . 24 . . 5 5 44 Slashing . | . . . . . . . . . Piercing . | . . . . . . . . . Sneak Attacks 13 | . . . 10 . . 1 1 1 Combat Hostiles 1 | . . . . . . 1 . . Follow-up Attacks . | . . . . . . . . . Damage Inflicted 4595 | 63 495 97 1953 . . 173 151 1663 Guns 1790 | 63 495 97 1135 . . . . . Cannons . | . . . . . . . . . Explosions 1186 | . . . 47 . . . . 1139 Melee 1619 | . . . 771 . . 173 151 524 Ramming . | . . . . . . . . . Kinetic 538 | . 168 97 273 . . . . . Thermal 297 | 63 . . 234 . . . . . Explosive 1139 | . . . . . . . . 1139 Electromagnetic 1002 | . 327 . 675 . . . . . Impact 1619 | . . . 771 . . 173 151 524 Slashing . | . . . . . . . . . Piercing . | . . . . . . . . . Highest Corruption 25 | . . . . . . . . 25 Average Corruption 23 | . . . . . . . . 23 Corruption Purged . | . . . . . . . . . Corruption Blocked . | . . . . . . . . . Effects 29 | . . . . . . . . 29 Message Errors 8 | . . . . . . . . 8 Matter Fused 10 | . . . . . . . . 10 Heat Flow Errors 3 | . . . . . . . . 3 Energy Discharges 1 | . . . . . . . . 1 Data Loss (minor) 4 | . . . . . . . . 4 Data Loss (major) 2 | . . . . . . . . 2 Alerts 1 | . . . . . . . . 1 Overload Shots . | . . . . . . . . . Overflow Damage 518 | . . . 225 . . 65 45 183 Projectiles . | . . . . . . . . . Explosions 21 | . . . . . . . . 21 Melee 497 | . . . 225 . . 65 45 162 Knockbacks 7 | . . . 4 . . . 2 1 Impact 6 | . . . 3 . . . 2 1 Kinetic . | . . . . . . . . . Secondary 1 | . . . 1 . . . . . Self-Inflicted Damage 91 | . . . 32 . . . . 59 Shots 4 | . . . 2 . . . . 2 Rammed . | . . . . . . . . . Targets Rammed . | . . . . . . . . . Kicked . | . . . . . . . . . Crushed . | . . . . . . . . . Highest Temperature 324 | 117 152 6 324 . . . . 161 Average Temperature 58 | 62 50 4 62 . . . . 47 Received Heat Transfer 1000 | . 192 45 327 . . 54 45 337 Effects 1 | . . . 1 . . . . . Matter Decay 1 | . . . 1 . . . . . Siege Activations . | . . . . . . . . . Robots Corrupted 5 | . 2 . 3 . . . . . Combat Hostiles 2 | . 2 . . . . . . . Parts Fried 20 | . 3 . 11 . . 1 2 3 Impact Corruptions 21 | . . . 9 . . 2 2 8 Robots Melted 1 | . . . 1 . . . . . Combat Hostiles 1 | . . . 1 . . . . . Parts Melted 4 | 1 . . 3 . . . . . Heat Transferred 988 | 185 . . 803 . . . . . Parts Sabotaged . | . . . . . . . . . Parts Stolen . | . . . . . . . . . Parts Stripped . | . . . . . . . . . Power Chain Reactions 3 | . . . 3 . . . . . Alert | -11 -10 -9 -9 -9 -7 -7 -6 -6 ------- Run | Yrd Mat Mat Sto Rec Fac DSF Fac Ext Peak Influence 353 | 5 172 45 353 137 57 68 71 171 Initial 137 | . 3 . 18 137 57 43 35 29 Average 85 | . 73 18 120 137 57 59 53 55 Maximum Alert Level 1 | . . . 1 . . . . . Low Security (%) 98 | 100 100 100 96 100 100 100 100 100 Level 1 1 | . . . 3 . . . . . Level 2 . | . . . . . . . . . Level 3 . | . . . . . . . . . Level 4 . | . . . . . . . . . Level 5 . | . . . . . . . . . High Security . | . . . . . . . . . Max Security . | . . . . . . . . . Squads Dispatched 7 | . . . 4 . . . 1 2 Investigation 2 | . . . 1 . . . . 1 Extermination . | . . . . . . . . . Reinforcement 4 | . . . 2 . . . 1 1 Assault 1 | . . . 1 . . . . . Garrison . | . . . . . . . . . Intercept . | . . . . . . . . . Searches Triggered . | . . . . . . . . . Construction Impeded . | . . . . . . . . . Haulers Reinforced . | . . . . . . . . . Active Scanning Responses . | . . . . . . . . . Cargo Convoy Interrupts . | . . . . . . . . . Stealth | -11 -10 -9 -9 -9 -7 -7 -6 -6 --------- Run | Yrd Mat Mat Sto Rec Fac DSF Fac Ext Distress Signals 7 | . 1 . 5 . . . . 1 Communications Jammed . | . . . . . . . . . Distress Signals . | . . . . . . . . . Times Spotted 54 | . 10 1 23 . . 4 5 11 Peak Tracking Total 6 | . 3 1 6 . . 2 3 5 Tactical Retreats 6 | . 1 . 1 . . 1 1 2 Traps | -11 -10 -9 -9 -9 -7 -7 -6 -6 ------- Run | Yrd Mat Mat Sto Rec Fac DSF Fac Ext Traps Triggered 5 | . . . 4 . . 1 . . Indirectly . | . . . . . . . . . Trap Hack Attempts . | . . . . . . . . . Triggered . | . . . . . . . . . Disarmed . | . . . . . . . . . Reprogrammed . | . . . . . . . . . Reused . | . . . . . . . . . Traps Extracted . | . . . . . . . . . Installed . | . . . . . . . . . Triggered 1 | . . . 1 . . . . . Machines | -11 -10 -9 -9 -9 -7 -7 -6 -6 ---------- Run | Yrd Mat Mat Sto Rec Fac DSF Fac Ext Machines Disabled 5 | . . . 2 . . . . 3 Max in Single Turn 1 | . . . 1 . . . . 1 Garrison Access 1 | . . . 1 . . . . . Machines Repaired . | . . . . . . . . . Machines Dismantled . | . . . . . . . . . Machines Sabotaged . | . . . . . . . . . Overloaded Fab Kills . | . . . . . . . . . Hacking | -11 -10 -9 -9 -9 -7 -7 -6 -6 --------- Run | Yrd Mat Mat Sto Rec Fac DSF Fac Ext Machines Accessed 3 | . . . 1 . 1 . . 1 Terminals 3 | . . . 1 . 1 . . 1 Fabricators . | . . . . . . . . . Repair Stations . | . . . . . . . . . Recycling Units . | . . . . . . . . . Scanalyzers . | . . . . . . . . . Garrison Access . | . . . . . . . . . Total Hacks 6 | . . . 2 . 1 . . 3 Successful 2 | . . . 1 . 1 . . . Failed 4 | . . . 1 . . . . 3 Catastrophic 1 | . . . 1 . . . . . Database Lockouts . | . . . . . . . . . Manual 1 | . . . 1 . . . . . Terminals 6 | . . . 2 . 1 . . 3 Fabricators . | . . . . . . . . . Repair Stations . | . . . . . . . . . Recycling Units . | . . . . . . . . . Scanalyzers . | . . . . . . . . . Garrison Access . | . . . . . . . . . Terminal Hacks 2 | . . . 1 . 1 . . . Open Door 1 | . . . 1 . . . . . Open DSF 1 | . . . . . 1 . . . Fabricator Hacks . | . . . . . . . . . Repair Station Hacks . | . . . . . . . . . Recycling Unit Hacks . | . . . . . . . . . Scanalyzer . | . . . . . . . . . Garrison Access Hacks . | . . . . . . . . . Unauthorized Hacks . | . . . . . . . . . Terminals . | . . . . . . . . . Fabricators . | . . . . . . . . . Repair Stations . | . . . . . . . . . Recycling Units . | . . . . . . . . . Scanalyzers . | . . . . . . . . . Garrison Access . | . . . . . . . . . Data Cores Recovered . | . . . . . . . . . Used . | . . . . . . . . . Hacking Detections 2 | . . . 1 . . . . 1 Full Trace Events 2 | . . . 1 . . . . 1 Feedback Events . | . . . . . . . . . Feedback Blocked . | . . . . . . . . . Robot Schematics Acquired . | . . . . . . . . . Robots Built . | . . . . . . . . . Authchips . | . . . . . . . . . Time . | . . . . . . . . . Total Robot Build Rating . | . . . . . . . . . Part Schematics Acquired . | . . . . . . . . . Parts Built . | . . . . . . . . . Authchips . | . . . . . . . . . Time . | . . . . . . . . . Total Part Build Rating . | . . . . . . . . . Parts Repaired . | . . . . . . . . . Time . | . . . . . . . . . Parts Recycled . | . . . . . . . . . Recycled Matter . | . . . . . . . . . Retrieved Matter . | . . . . . . . . . Retrieved Components . | . . . . . . . . . Parts Scanalyzed . | . . . . . . . . . Part Schematics Acquired . | . . . . . . . . . Parts Damaged . | . . . . . . . . . Bothacking | -11 -10 -9 -9 -9 -7 -7 -6 -6 ------------ Run | Yrd Mat Mat Sto Rec Fac DSF Fac Ext Used RIF Installer . | . . . . . . . . . Robots Hacked . | . . . . . . . . . Non-combat . | . . . . . . . . . Combat . | . . . . . . . . . Robot Hacks Applied . | . . . . . . . . . Relay Couplers Released . | . . . . . . . . . Fabnet Peak Effective % . | . . . . . . . . . Robots Rewired . | . . . . . . . . . Allies Hacked . | . . . . . . . . . Hacks Repelled . | . . . . . . . . . Allies | -11 -10 -9 -9 -9 -7 -7 -6 -6 -------- Run | Yrd Mat Mat Sto Rec Fac DSF Fac Ext Total Allies 10 | . . . 10 . . . . . Largest Group 10 | . . . 10 . . . . . Highest-Rated Group 88 | . . . 88 . . . . . Highest-Rated Ally 16 | . . . 16 . . . . . Total Orders 1 | . . . 1 . . . . . ROAM 1 | . . . 1 . . . . . Ally Attacks 93 | . . . 93 . . . . . Total Damage 838 | . . . 838 . . . . . Kills 9 | . . . 9 . . . . . Allies Corrupted . | . . . . . . . . . Allies Melted . | . . . . . . . . . Intel | -11 -10 -9 -9 -9 -7 -7 -6 -6 ------- Run | Yrd Mat Mat Sto Rec Fac DSF Fac Ext Robot Analysis Total . | . . . . . . . . . Derelict Logs Recovered . | . . . . . . . . . Drone Launches . | . . . . . . . . . Drone Recoveries . | . . . . . . . . . Exploration | -11 -10 -9 -9 -9 -7 -7 -6 -6 ------------- Run | Yrd Mat Mat Sto Rec Fac DSF Fac Ext Turns Passed 4085 | 116 443 65 1557 283 5 133 142 1341 Spaces Moved 1710 | 101 264 29 607 148 3 75 98 385 Core 6 | 6 . . . . . . . . Treads 9 | . . . 9 . . . . . Legs 1187 | . . . 478 148 3 75 98 385 Wheels 508 | 95 264 29 120 . . . . . Hover . | . . . . . . . . . Flight . | . . . . . . . . . Fastest Speed 50 | 50 90 101 101 190 190 125 128 128 Average Speed 152 | 87 112 101 192 190 190 140 128 132 Slowest Speed 400 | 90 120 101 400 190 190 192 128 200 Overloaded Moves . | . . . . . . . . . Propulsion Burnouts . | . . . . . . . . . Robots Hopped . | . . . . . . . . . Cave-ins Triggered 13 | . . . . . . . . 13 Exploration Rate (%) 29 | 4 44 6 62 38 . 49 2 33 Regions Visited 8 Branch Regions 3 Pre-discovered Areas . | . . . . . . . . . Known Exits Taken 1 | . . . . . 1 . . . Unknown Exits Taken 6 | 1 1 1 1 1 . . 1 . Scrap Searched . | . . . . . . . . . Spaces Dug 17 | . . . 5 . . . 1 11 Terrain Destroyed 142 | . . . 16 . . . 1 125 Melee 17 | . . . 5 . . . 1 11 Projectile . | . . . . . . . . . AOE 125 | . . . 11 . . . . 114 Terrain Rammed . | . . . . . . . . . Walls Destroyed . | . . . . . . . . . Machines Disabled . | . . . . . . . . . Actions | -11 -10 -9 -9 -9 -7 -7 -6 -6 --------- Run | Yrd Mat Mat Sto Rec Fac DSF Fac Ext Total 2855 | 120 354 55 850 151 3 95 106 1121 Wait 818 | 2 40 18 89 . . 1 1 667 Move 1700 | 100 263 28 606 147 2 74 97 383 Hop . | . . . . . . . . . Pick Up 36 | 8 12 1 12 1 . . . 2 Fast Attach 8 | 4 1 . 3 . . . . . Attach 19 | 2 2 2 5 . 1 3 3 1 Detach 1 | . 1 . . . . . . . Swap 30 | 1 5 1 13 1 . 7 . 2 Drop 15 | . 1 . 6 2 . 5 . 1 Fire 133 | 3 29 5 77 . . . . 19 Melee 78 | . . . 24 . . 5 5 44 Ram . | . . . . . . . . . Kick . | . . . . . . . . . Crush . | . . . . . . . . . Escape Stasis 17 | . . . 15 . . . . 2 Rewire . | . . . . . . . . . Trap . | . . . . . . . . . Miscellaneous . | . . . . . . . . . Route ------- -11/Scrapyard -10/Materials (discovered 2 exits: [*Mat] / [*Min]) -9/Materials -9/Storage -9/Recycling -7/Factory -7/DSF -6/Factory -6/Extension History --------- Turn | Location | Event 14 | -11/Scrapyard | Discovered new exit (range 15) 117 | -11/Scrapyard | Entered Materials 311 | -10/Materials | Build established: Mutant 390 | -10/Materials | Discovered new exit (range 16) 534 | -10/Materials | Discovered new exit (range 10) 560 | -10/Materials | Entered another Materials area 560 | -9/Materials | Evolved 2 slots: Propulsion x2 622 | -9/Materials | Discovered new exit (range 3) 625 | -9/Materials | Entered Storage 877 | -9/Storage | Lost 4 parts (2n1u1w) 1094 | -9/Storage | Assisted by bots powering up and referring to "LRC-V3" 1182 | -9/Storage | Lost 4 allies 1544 | -9/Storage | Core integrity fell below 50% 2175 | -9/Storage | Discovered new exit (range 4) 2182 | -9/Storage | Entered Recycling 2193 | -9/Recycling | Found Scrap Engine 2458 | -9/Recycling | Discovered new exit (range 5) 2465 | -9/Recycling | Entered Factory 2465 | -7/Factory | Evolved 4 slots: Utility x4 2470 | -7/Factory | Identified exit to DSF 2470 | -7/Factory | Entered DSF 2575 | -7/DSF | Discovered new exit (range 12) 2583 | -7/DSF | Additional patrols routed to DSF 2603 | -7/DSF | Entered Factory 2603 | -6/Factory | Evolved 2 slots: Propulsion x2 2675 | -6/Factory | Discovered new exit (range 14) 2745 | -6/Factory | Entered Extension 3087 | -6/Extension | Disrupted transfer network 3395 | -6/Extension | Lost 3 parts (3n) 3431 | -6/Extension | Crushed by falling debris 3443 | -6/Extension | Crushed by falling debris 3444 | -6/Extension | System corruption reached 10% 3474 | -6/Extension | Lost 6 parts (1p2n1u2w) 3498 | -6/Extension | Crushed by falling debris 3621 | -6/Extension | Crushed by falling debris 3637 | -6/Extension | Crushed by falling debris 3742 | -6/Extension | Crushed by falling debris 3765 | -6/Extension | Crushed by falling debris 3765 | -6/Extension | Core integrity fell below 50% 3801 | -6/Extension | Crushed by falling debris 3821 | -6/Extension | Crushed by falling debris 3869 | -6/Extension | Lost 9 parts (1p1n4u3w) 3883 | -6/Extension | Crushed by falling debris 3974 | -6/Extension | Crushed by falling debris 3974 | -6/Extension | Core integrity fell below 20% 4067 | -6/Extension | Crushed by falling debris 4087 | -6/Extension | Crushed by falling debris 4087 | -6/Extension | Smashed by cave-in Last Messages --------------- 03862_ System corrupted: Matter fused (-7). 03878_ 4HN93Y/P:4H<#DZDRCQRZVKD:OFK%V/XA&3LG4PV<6GA 04042_ System corrupted: Matter fused (-8). 04067_ The unstable cave ceiling collapses. 04067_ Crushed by falling debris. 04087_ The unstable cave ceiling collapses. 04087_ Crushed by falling debris. Map ----- +----------------------------------------------------+ | | | | | | | | | | | | | | | | | | | | | | | | | | | | | | | | | | | ?????????????????????????????????????????????????? | | ?????????????????????????????????????????????????? | | #########????????????????????????????????????????? | | ^ #???######???????????????????????????????? | | #???# #???????????????????????????????? | | #???# #???#####???????????????????????? | | #???# #???##""##??????????????????????? | | #???# #???######??????????????????????? | | ^ #???# #??????#@#??????????????????????? | | ##### #???##"###??????????????????????? | | #???#T ###??????????????????????? | | ############# ###### "#???????????????????????? | | ????????????# #???????????????????????? | | ????????????# #???????????????????????? | | ????????????# #???????????????????????? | | ????????????# #???????????????????????? | | ???????????# #???????????????????????? | | ??????###### ########????????????????? | | ?????????? | | #??###############"#############????????????????? | | ????????????????###????????????????????????????? | | #???????????????????????????????????????????????? | | ##???????????????????????????????????????????????? | | #????????????????????????????????????????????????? | | ?????????????????????????????????????????????????? | | ?????????????????????????????????????????????????? | | ?????????????????????????????????????????????????? | | ?????????????????????????????????????????????????? | | ?????????????????????????????????????????????????? | | ?????????????????????????????????????????????????? | | ?????????????????????????????????????????????????? | | ?????????????????????????????????????????????????? | | ?????????????????????????????????????????????????? | +----------------------------------------------------+ Best States ------------- Heat Dissipation 37 Energy Generation 14 Energy Capacity 680 Matter Stores 300 Matter Capacity 300 Sight Range 16 Terrain Scan Density 10 Armor Coverage 450 Propulsion Shielding 33 Evasion (%) 55 Recoil Reduction 2 Item Schematics ----------------- None Robot Schematics ------------------ None Fabricated ------------ Nothing Alien Tech Used ----------------- None Achievements -------------- Part-time Excavator \\IAMDERELICT Challenges ------------ None Game ------ Seed DroneRestorationClaymores Manual? 0 Play Time 00:33:56 Cumulative 21.7 hours Start 2024.03.22 @ 23:23:15 End 2024.03.22 @ 23:56:09 Sessions 1 Manual Loads 0 Difficulty Rogue Special Mode None Game No. 32 Rogue 32 Adventurer 0 Explorer 0 Win Type - Total 0 Types 0/0/0/0/0/0/0/0/0 Lore% 22 Gallery% 24 Achievement% 23 Wizard Run 0 Options --------- Layout 1 ASCII 0 Keyboard 1 Movement Numpad Keybinds 0 Fullscreen 1 Font 16/SmallcapsGlow Map View 55x38 Zoom Use 0% Tactical HUD 1 Map Filters NONE Filters NONE Steam 1 RUN: d8b4d75f-29e6-4d43-8b4c-6d4f10ed255d